[Event "21st IPCA World Championship 2022"]
[Site "Ashdod"]
[Date "2022.05.15"]
[Round "8.1"]
[White "Obodchuk, Andrei"]
[Black "Lipilin, Ilia"]
[Result "1-0"]
[ECO "D27"]
[WhiteElo "2295"]
[BlackElo "2198"]
[Annotator "TA"]
[PlyCount "71"]
[EventDate "2022.05.09"]
[EventType "swiss"]
[EventCountry "ISR"]
[SourceTitle "playchess.com"]
[Source "ChessBase"]
[SourceQuality "1"]
[TimeControl "5400+30"]

{[%evp 11,71,33,25,8,8,8,16,15,10,7,16,10,37,42,22,37,104,102,97,97,97,99,105,102,314,315,288,281,447,450,417,377,375,379,460,460,463,423,545,524,655,639,673,671,652,674,662,666,661,651,1110,838,2479,2329,1555,2020,29958,11902,29963,6683,4910,4898]} 1. d4 {[%emt 0:00:02]} d5 {[%emt 0:00:12]} 2. Nf3 {[%emt 0:00:03]} Nf6 {[%emt 0:00:11]} 3. c4 {[%emt 0:00:03]} dxc4 {[%emt 0:00:13]} 4. e3 {[%emt 0:00:02]} e6 {[%emt 0:00:15]} 5. Bxc4 {[%emt 0:00:06]} a6 {[%emt 0:00:09]} 6. O-O {[%emt 0:00:10]} c5 {[%emt 0:00:08]} 7. Re1 {[%emt 0:00:08] D27: Queen's Gambit Accepted: Classical main line: 7 e4!? and 7 a4.} Nc6 {[%emt 0:00:52]} 8. Nc3 {[%emt 0:00:23]} b5 {[%emt 0:00:54]} 9. Bd3 {[%emt 0:00:17] The position is equal.} Bb7 {[%emt 0:00:08]} 10. a4 {[%emt 0:01:05]} b4 {[%emt 0:00:27]} 11. Ne4 {[%emt 0:01:13]} cxd4 {[%emt 0:11:32]} 12. exd4 {[%emt 0:00:19]} Be7 {[%emt 0:03:18]} (12... Nxd4 $2 13. Nxd4 Be7 14. Qf3 $1 $18) 13. Bf4 {[%emt 0:14:54][%cal Bc1f4,Bf4g3,Bg3h4][%mdl 32] [#]} Nd5 $146 {[%emt 0:03:34]} (13... O-O $14) ({Predecessor:} 13... O-O 14. Nc5 Na5 15. Nxb7 Nxb7 16. Rc1 Nd6 17. Ne5 a5 18. Qf3 Nd5 19. Nc6 Qd7 20. Nxe7+ Nxe7 {½-½ (62) Pantzar,M (2417)-Olsen,F (2353) chess24.com INT 2020}) 14. Bg3 $16 {[%emt 0:01:15] White is more active.} O-O {[%emt 0:04:39]} 15. Nc5 {[%emt 0:02:51]} Bxc5 {[%emt 0:15:07]} 16. dxc5 {[%emt 0:00:06]} Qf6 {[%emt 0:00:45]} 17. Bh4 {[%emt 0:05:32] This bishop pair is nice.} Qxb2 {[%emt 0:05:15] [#] This move loses the game for Black.} (17... Qf4 $16) 18. Re2 $1 $18 {[%emt 0:00:58][%cal Be1e2,Be2c2,Bc2c4][%mdl 32]} Qc3 {[%emt 0:03:17] [#]} 19. Rc2 $1 {[%emt 0:00:57]} Ne3 {[%emt 0:05:13]} (19... Qb3 {was worth a try.}) 20. fxe3 {[%emt 0:00:41]} Qb3 {[%emt 0:00:09]} 21. Rc4 {[%emt 0:04:42]} Qxd1+ {[%emt 0:00:35]} 22. Rxd1 {[%emt 0:00:01]} a5 {[%emt 0:01:29]} 23. Rcc1 {[%emt 0:00:39]} h6 {[%emt 0:01:07]} 24. Be4 {[%emt 0:00:21]} g5 {[%emt 0:01:47]} 25. Bg3 {[%emt 0:00:12]} Rfd8 {[%emt 0:00:32]} 26. Ne5 {[%emt 0:01:29]} Rac8 {[%emt 0:03:46]} 27. Rxd8+ {[%emt 0:01:00]} Nxd8 {[%emt 0:00:10]} 28. Bxb7 {[%emt 0:00:36]} Nxb7 {[%emt 0:00:10]} 29. c6 {[%emt 0:00:15]} Nd6 {[%emt 0:00:06]} 30. Nd7 {[%emt 0:00:31]} Ne4 {[%emt 0:06:26]} 31. Be5 {[%emt 0:00:26] Prevents Nc3.} f6 {[%emt 0:04:52]} 32. Nxf6+ {[%emt 0:00:11]} Nxf6 {[%emt 0:00:15]} 33. Bxf6 {[%emt 0:00:03] Intending Be5 and mate.} Kf7 {[%emt 0:00:21]} 34. Be5 {[%emt 0:00:03] Rc5 would kill now.} h5 {[%emt 0:00:34]} 35. c7 {[%emt 0:00:04]} (35. Rc5 $142 b3 36. c7 g4 37. Rxa5 Kg6 38. Rb5 g3 39. Bxg3 h4 40. Be5) 35... Kg6 {[%emt 0:00:30]} 36. e4 {[%emt 0:00:06] Weighted Error Value: White=0.06 (flawless) /Black=0.64} 1-0

[Event "21st IPCA World Championship 2022"]
[Site "Ashdod"]
[Date "2022.05.15"]
[Round "8.2"]
[White "Mikheev, Stanislav"]
[Black "Gurbanov, Andrei"]
[Result "1-0"]
[ECO "A13"]
[WhiteElo "2333"]
[BlackElo "2302"]
[Annotator "TA"]
[PlyCount "99"]
[EventDate "2022.05.09"]
[EventType "swiss"]
[EventCountry "ISR"]
[SourceTitle "playchess.com"]
[Source "ChessBase"]
[SourceQuality "1"]
[TimeControl "5400+30"]

{[%evp 22,99,0,0,0,0,0,0,0,-8,0,-12,-7,-63,-51,-76,-21,-31,0,0,0,0,0,0,0,0,3,7,17,10,26,0,20,0,0,0,19,0,0,0,8,-18,-14,-23,-9,-5,241,0,165,139,366,0,27,18,28,22,54,40,47,68,52,0,0,0,0,15,662,547,517,455,12836,12836,12837,12836,12837,598,12840,12840,12841,12837]} 1. c4 {[%emt 0:00:05]} e6 {[%emt 0:00:26]} 2. Nf3 {[%emt 0:00:20]} d5 {[%emt 0:00:06]} 3. g3 {[%emt 0:00:14]} dxc4 {[%emt 0:01:23]} 4. Qa4+ {[%emt 0:00:19]} Nd7 {[%emt 0:00:13]} 5. Bg2 {[%emt 0:00:18]} a6 {[%emt 0:00:41]} 6. Qxc4 {[%emt 0:00:14]} b5 {[%emt 0:01:38]} 7. Qc2 {[%emt 0:00:28]} Bb7 {[%emt 0:00:35]} 8. O-O {[%emt 0:01:05]} c5 {[%emt 0:01:28]} 9. b3 {[%emt 0:03:21]} Ngf6 {[%emt 0:01:10]} 10. Bb2 {[%emt 0:00:38]} Be7 {[%emt 0:00:31]} 11. d3 {[%emt 0:02:09]} O-O {[%emt 0:01:35]} 12. Nbd2 {[%emt 0:00:15]} Qb6 {[%emt 0:02:31] A13: English Opening: 1...e6.} 13. Rac1 {[%emt 0:01:33]} Rfd8 {[%emt 0:05:59]} 14. Qb1 {[%emt 0:01:27]} Rac8 {[%emt 0:00:59] The position is equal.} 15. a3 {[%emt 0:00:48]} Nb8 {[%emt 0:01:20] [#]} 16. e3 $146 {[%emt 0:06:27]} ({Predecessor:} 16. Qa1 Nc6 17. Rc2 Na5 18. Rcc1 Ne8 19. Qb1 f6 20. Bc3 e5 21. Bh3 Rc7 22. b4 {½-½ (43) Koshy,V (2347)-Sriram,J (2408) Raipur 2002}) 16... Qa7 {[%emt 0:07:41]} 17. b4 {[%emt 0:10:00]} (17. Rfd1 $11) 17... cxb4 $15 {[%emt 0:02:50]} 18. Bd4 {[%emt 0:01:29] [#]} Qa8 {[%emt 0:01:33]} (18... Rxd4 $1 $17 19. Nxd4 (19. Rxc8+ Bxc8) 19... bxa3) 19. axb4 $11 {[%emt 0:00:53]} Nbd7 {[%emt 0:01:05]} 20. e4 {[%emt 0:08:49] Inhibits Nd5.} Rxc1 {[%emt 0:02:48]} 21. Rxc1 {[%emt 0:00:02]} Rc8 {[%emt 0:00:08]} 22. Rxc8+ {[%emt 0:08:39]} Qxc8 {[%emt 0:00:30]} 23. Ne1 {[%emt 0:00:16]} e5 {[%emt 0:08:24]} 24. Ba1 {[%emt 0:00:17]} Bd6 {[%emt 0:01:03]} 25. Nc2 {[%emt 0:06:56]} Qc7 {[%emt 0:04:30]} 26. h3 {[%emt 0:04:42]} Nb6 {[%emt 0:01:24]} 27. Qb3 {[%emt 0:03:08]} h6 {[%emt 0:07:35]} 28. Kh2 {[%emt 0:01:25]} Na4 {[%emt 0:03:28]} 29. d4 {[%emt 0:01:55]} exd4 {[%emt 0:00:25]} 30. Bxd4 {[%emt 0:00:12][%cal Oe4e5] aiming for e5!} Be5 {[%emt 0:02:53]} 31. f4 {[%emt 0:04:12]} Bxd4 {[%emt 0:02:56]} 32. Nxd4 {[%emt 0:00:03]} Qc1 {[%emt 0:01:23]} 33. Qc2 {[%emt 0:06:43]} Qe1 {[%emt 0:08:02]} (33... Qxc2 $11 {and Black has nothing to worry.} 34. Nxc2 Nc3) 34. N4f3 $2 {[%emt 0:05:15]} (34. Nf5 $1 $18 {[%cal Rf5d6]}) 34... Qf2 $2 {[%emt 0:04:15]} (34... Qe3 $1 $11 {and Black stays safe.}) 35. Qc7 $1 $18 {[%emt 0:01:07]} Qb6 {[%emt 0:07:06] [#]} (35... Bxe4 $2 36. Nxe4 Nxe4 37. Qc8+ Kh7 38. Qf5+ Kg8 39. Qxe4 $18) (35... Nxe4 $16 {was necessary.} 36. Qxb7 Qxg3+ 37. Kg1 Qf2+ 38. Kh1 Nxd2) 36. Qe7 $2 {[%emt 0:01:51]} ({White has to play} 36. Qb8+ $1 $18 Kh7 37. Ne5) 36... Bc6 {[%emt 0:01:40]} 37. Ne5 {[%emt 0:01:55]} Be8 {[%emt 0:00:17]} 38. f5 {[%emt 0:02:44][%cal Bf4f5,Bf5f6][%mdl 32]} Nc3 {[%emt 0:02:21]} 39. Ng4 $1 {[%emt 0:04:56] Prevents Qf2.} Nxg4+ {[%emt 0:02:59]} 40. hxg4 {[%emt 0:00:02]} Bc6 {[%emt 0:02:27]} 41. f6 {[%emt 0:00:07] Hoping for fxg7.} (41. Qd6 $5 {[%cal Re4e5]} Na4 42. Nb3 $14) 41... Ne2 {[%emt 0:01:45] ...Qg1+ is the strong threat.} 42. Nf3 {[%emt 0:04:32] Against Qg1+} Qf2 {[%emt 0:03:09]} 43. Qd6 $40 {[%emt 0:00:23][%mdl 128] White has some attack.} Ng1 $2 {[%emt 0:04:10][%mdl 8192]} 44. Nxg1 {[%emt 0:01:54] White is clearly winning.} Bxe4 {[%emt 0:00:01][%csl Ge4][%cal Rf2g2]} 45. Nf3 {[%emt 0:00:40]} Bxf3 {[%emt 0:01:10]} (45... gxf6 $142 46. Qxf6 Qc2) 46. Qd8+ {[%emt 0:00:07]} Kh7 {[%emt 0:00:02]} 47. Qd3+ {[%emt 0:00:06]} g6 {[%emt 0:00:01]} 48. Qxf3 {[%emt 0:00:08]} Qb2 {[%emt 0:00:02]} 49. Qf4 {[%emt 0:00:52] White wants to mate with Qd6.} Qc3 {[%emt 0:00:02]} 50. Qd6 {[%emt 0:00:25] Weighted Error Value: White=0.28 (precise) /Black=0.60} 1-0

[Event "21st IPCA World Championship 2022"]
[Site "Ashdod"]
[Date "2022.05.15"]
[Round "8.3"]
[White "Yarmonov, Igor"]
[Black "Zilberman, Yaacov"]
[Result "1/2-1/2"]
[ECO "D41"]
[WhiteElo "2394"]
[BlackElo "2315"]
[Annotator "TA"]
[PlyCount "70"]
[EventDate "2022.05.09"]
[EventType "swiss"]
[EventCountry "ISR"]
[SourceTitle "playchess.com"]
[Source "ChessBase"]
[SourceQuality "1"]
[TimeControl "5400+30"]

{[%evp 13,70,24,28,19,32,30,19,0,0,0,3,-10,-7,-18,-19,-25,-5,-23,-18,-17,-25,-18,-8,-7,-7,-16,0,0,0,0,0,0,0,0,0,-14,0,0,0,0,0,0,0,0,0,0,0,0,0,0,0,0,0,0,0,0,0,0,0]} 1. d4 {[%emt 0:00:05] CB} Nf6 {[%emt 0:00:12]} 2. c4 {[%emt 0:00:22]} e6 {[%emt 0:00:20]} 3. Nc3 {[%emt 0:00:28]} d5 {[%emt 0:00:12]} 4. Nf3 {[%emt 0:00:40]} c5 {[%emt 0:01:09]} 5. cxd5 {[%emt 0:05:37]} Nxd5 {[%emt 0:00:13]} 6. g3 {[%emt 0:04:51]} Nc6 {[%emt 0:02:01]} 7. Bg2 {[%emt 0:07:53]} cxd4 {[%emt 0:01:20]} 8. Nxd4 {[%emt 0:00:43] D41: Queen's Gambit Declined: Semi-Tarrasch with 5 cxd5.} Nxc3 {[%emt 0:00:25]} 9. bxc3 {[%emt 0:00:13]} Nxd4 {[%emt 0:00:35]} 10. cxd4 {[%emt 0:01:23]} Bb4+ {[%emt 0:02:05]} 11. Kf1 {[%emt 0:00:07] [#] Qa4+ is the strong threat. has lost popularity (11.Bd2).} O-O {[%emt 0:07:14] [#]} 12. e3 $146 {[%emt 0:01:46]} ({Predecessor:} 12. Rb1 Bd6 13. h4 Rb8 14. h5 h6 15. e4 b6 16. Be3 e5 17. dxe5 Bxe5 18. f4 Qxd1+ 19. Rxd1 {½-½ (30) Aronian,L (2805)-Caruana,F (2801) Saint Louis 2014 CBM 162 [CB]}) 12... Rb8 {[%emt 0:02:59]} 13. Qb3 {[%emt 0:06:45]} Qa5 {[%emt 0:03:32]} 14. a3 {[%emt 0:11:26]} Bd6 {[%emt 0:02:03]} 15. Be4 {[%emt 0:02:00]} Bd7 {[%emt 0:03:10]} 16. Kg2 {[%emt 0:00:04]} Rfc8 {[%emt 0:04:54]} 17. Ra2 {[%emt 0:08:17]} Bc6 {[%emt 0:09:58] The position is equal.} (17... Ba4 $5 {[%cal Ra4b3]} 18. Qb1 Bc6 $11) 18. Bxc6 {[%emt 0:00:03]} bxc6 {[%emt 0:03:32]} 19. Bd2 {[%emt 0:02:00]} Rxb3 {[%emt 0:06:12]} (19... Qxd2 $2 20. Qxb8 Qxf2+ 21. Kxf2 $18) (19... Qd5+ {with more complications.} 20. Qxd5 cxd5 21. Bb4 Bf8) 20. Bxa5 {[%emt 0:00:05][%cal Oa5b4]} Rxa3 {[%emt 0:00:56]} 21. Rxa3 {[%emt 0:00:41]} Bxa3 $11 {[%emt 0:00:16][%mdl 4096] Endgame KRB-KRB} 22. Rb1 {[%emt 0:01:03]} h5 {[%emt 0:08:13]} 23. Rb7 {[%emt 0:01:16]} c5 {[%emt 0:05:06]} 24. Rb3 {[%emt 0:00:44]} Bb4 {[%emt 0:00:28]} 25. Bxb4 {[%emt 0:00:03]} cxb4 {[%emt 0:00:20]} 26. Rxb4 {[%emt 0:00:18] KR-KR} a5 {[%emt 0:00:26]} 27. Ra4 {[%emt 0:00:08]} Ra8 {[%emt 0:00:14]} 28. Kf3 {[%emt 0:01:17]} Kf8 {[%emt 0:00:42]} 29. e4 {[%emt 0:05:37]} Ke7 {[%emt 0:01:15]} 30. Ke3 {[%emt 0:00:20]} Kd6 {[%emt 0:03:00]} 31. Kd3 {[%emt 0:00:07]} Kc6 {[%emt 0:00:40]} 32. Kc4 {[%emt 0:00:45]} Kb6 {[%emt 0:00:15]} 33. Ra2 {[%emt 0:03:48]} Rc8+ {[%emt 0:01:45]} 34. Kd3 {[%emt 0:04:06]} Ra8 {[%emt 0:03:46]} 35. Kc4 {[%emt 0:00:14]} Rc8+ {[%emt 0:28:32] An interesting draw.  Weighted Error Value: White=0.02 (flawless) /Black=0.03 (flawless)} 1/2-1/2

[Event "21st IPCA World Championship 2022"]
[Site "Ashdod"]
[Date "2022.05.15"]
[Round "8.4"]
[White "Shapiro, Benny"]
[Black "Babanov, Aleksandr"]
[Result "1-0"]
[ECO "A42"]
[WhiteElo "1884"]
[BlackElo "1929"]
[Annotator "TA"]
[PlyCount "93"]
[EventDate "2022.05.09"]
[EventType "swiss"]
[EventCountry "ISR"]
[SourceTitle "playchess.com"]
[Source "ChessBase"]
[SourceQuality "1"]
[TimeControl "5400+30"]

{[%evp 12,93,48,35,39,29,43,16,21,-58,0,5,47,53,32,45,97,50,51,18,41,29,43,44,93,106,141,12,169,62,63,63,63,63,64,25,91,80,234,233,249,247,222,241,302,298,376,357,423,408,570,566,759,739,876,862,855,739,853,835,772,733,1811,2007,1983,1986,1873,1731,2497,2358,3310,2771,2400,2246,29989,29990,29990,29991,29996,29997,29997,29995,29995,29989]} 1. d4 {[%emt 0:00:02]} g6 {[%emt 0:00:06]} 2. e4 {[%emt 0:00:10]} Bg7 {[%emt 0:00:05]} 3. c4 {[%emt 0:00:10]} d6 {[%emt 0:00:06]} 4. Nc3 {[%emt 0:00:12]} Nc6 {[%emt 0:05:07]} 5. Be3 {[%emt 0:02:11]} e5 {[%emt 0:00:14]} 6. d5 {[%emt 0:00:27]} Nce7 {[%emt 0:00:13]} 7. Be2 {[%emt 0:00:48]} f5 {[%emt 0:00:10] A42: Modern Defence: Averbakh Variation.} 8. f3 {[%emt 0:00:49]} Nf6 {[%emt 0:00:09]} 9. Qd2 {[%emt 0:00:54]} O-O {[%emt 1:28:50] The position is equal.} 10. Bh6 {[%emt 1:29:47] [#]} (10. O-O-O $11) 10... fxe4 $146 {[%emt 0:00:00]} (10... Bxh6 $15 11. Qxh6 c6) ({Predecessor:} 10... f4 11. Bxg7 Kxg7 12. Bd3 a6 13. Nge2 Bd7 14. g3 Nh5 15. O-O-O b5 16. g4 Nf6 {0-1 (42) Huber,F (1637)-Kunz,H (1824) Germany 2003}) 11. fxe4 $11 {[%emt 0:00:00]} Ng4 {[%emt 0:00:00]} 12. Bxg7 {[%emt 0:00:00]} Kxg7 {[%emt 0:00:00]} 13. Nf3 {[%emt 0:00:00]} Ng8 {[%emt 0:00:00]} (13... a6 $14) 14. O-O {[%emt 0:00:00]} (14. h3 $16 N4f6 15. g4) 14... Bd7 $14 {[%emt 0:00:00]} 15. b4 {[%emt 0:00:00]} Qe7 {[%emt 0:00:00]} 16. h3 {[%emt 0:00:00]} N4h6 {[%emt 0:00:00]} 17. Qe3 {[%emt 0:00:00]} b6 {[%emt 0:00:00] Inhibits c5.} (17... a5 $14 {deserves consideration.}) 18. c5 $16 {[%emt 0:00:00]} Nf7 {[%emt 0:00:00][%cal Rd6c5]} 19. a4 {[%emt 0:00:00]} (19. c6 $16 Bc8 20. Rf2) 19... Nf6 {[%emt 0:00:00] [#]} (19... dxc5 $11 {and Black has nothing to worry.} 20. bxc5 Qxc5 21. Qxc5 bxc5) 20. Nd2 {[%emt 0:00:00]} (20. c6 $1 $18 {[%cal Rc6d7]}) 20... a5 {[%emt 0:00:00]} 21. cxb6 {[%emt 0:00:00] And now bxa5 would win.} axb4 {[%emt 0:00:00]} 22. Nb5 {[%emt 0:00:00]} ({Stronger than} 22. bxc7 bxc3 23. Qxc3 Rfc8 $19) 22... cxb6 {[%emt 0:00:00]} 23. Qxb6 {[%emt 0:00:00]} Rfb8 {[%emt 0:00:00]} (23... Bxb5 $11 24. axb5 Nd7) 24. Qe3 {[%emt 0:00:00] Strongly threatening Nc7. 0x0.00084313d435dp-1022s more active pieces. White now steadily converts the win.} Nh5 $2 {[%emt 0:00:00]} (24... Bxb5 $16 25. Bxb5 (25. axb5 Rxa1 26. Rxa1 Qc7 $14) 25... Rc8) 25. Nc7 $18 {[%emt 0:00:00]} Nf4 {[%emt 0:01:47]} 26. Nxa8 {[%emt 0:00:00]} Rxa8 {[%emt 0:00:08]} 27. Nf3 {[%emt 0:00:00] Against Qg5} Ng5 {[%emt 0:02:13][%cal Od7h3]} 28. Bb5 {[%emt 0:00:00]} Bc8 {[%emt 0:01:16]} 29. Kh2 {[%emt 0:00:00]} b3 {[%emt 0:01:22]} 30. Rab1 {[%emt 0:00:00]} Ba6 {[%emt 0:01:45]} 31. Rf2 {[%emt 0:00:00]} Bxb5 {[%emt 0:01:12]} 32. axb5 {[%emt 0:00:00]} Nf7 {[%emt 0:01:05]} 33. Rxb3 {[%emt 0:00:00]} g5 {[%emt 0:00:11]} 34. b6 {[%emt 0:00:00]} Rb8 {[%emt 0:00:16]} 35. Ra2 {[%emt 0:00:00]} g4 {[%emt 0:00:52]} 36. Ng1 {[%emt 0:00:00]} Nh6 {[%emt 0:00:44]} 37. Ra7 {[%emt 0:00:00]} Rb7 {[%emt 0:00:33]} 38. Rxb7 {[%emt 0:00:00]} Qxb7 {[%emt 0:00:01]} 39. Qc3 {[%emt 0:00:00] [#] Threatens to win with Qc7+.} Qa6 {[%emt 0:00:30]} 40. Rb2 {[%emt 0:00:00]} Qf1 {[%emt 0:00:56]} 41. b7 {[%emt 0:00:00]} Nd3 {[%emt 0:00:24]} 42. b8=Q {[%emt 0:00:00][%cal Oc3c8] White wants to mate with Qcc8!} g3+ {[%emt 0:00:33]} 43. Kh1 {[%emt 0:00:00] White mates.} Nf2+ {[%emt 0:00:22]} 44. Rxf2 {[%emt 0:00:00]} gxf2 {[%emt 0:00:19]} 45. Qg3+ {[%emt 0:00:00]} Kf7 {[%emt 0:00:54]} 46. Qa7+ {[%emt 0:00:00]} Ke8 {[%emt 0:00:22]} 47. Qgxf2 {[%emt 0:18:30] Weighted Error Value: White=0.23 (precise) /Black=0.50} 1-0

[Event "21st IPCA World Championship 2022"]
[Site "Ashdod"]
[Date "2022.05.15"]
[Round "8.5"]
[White "Alperovich, Asher"]
[Black "Campos, Eugenio"]
[Result "0-1"]
[ECO "A68"]
[WhiteElo "1865"]
[BlackElo "2247"]
[Annotator "TA"]
[PlyCount "58"]
[EventDate "2022.05.09"]
[EventType "swiss"]
[EventCountry "ISR"]
[SourceTitle "playchess.com"]
[Source "ChessBase"]
[SourceQuality "1"]
[TimeControl "5400+30"]

{[%evp 27,58,0,27,23,30,0,0,0,0,0,0,0,0,0,0,0,0,-57,0,0,0,0,0,-31,-35,-264,-250,-338,-345,-338,-320,-709,-687]} 1. d4 {[%emt 0:02:12]} Nf6 {[%emt 0:00:07]} 2. c4 {[%emt 0:00:16]} c5 {[%emt 0:00:11]} 3. d5 {[%emt 0:00:04]} e6 {[%emt 0:00:06]} 4. Nc3 {[%emt 0:00:04]} exd5 {[%emt 0:00:09]} 5. cxd5 {[%emt 0:00:01]} d6 {[%emt 0:00:08]} 6. e4 {[%emt 0:00:13]} g6 {[%emt 0:00:06]} 7. f4 {[%emt 0:00:02]} a6 {[%emt 0:00:18]} 8. a4 {[%emt 0:01:00]} Bg7 {[%emt 0:00:07]} 9. Nf3 {[%emt 0:00:07]} O-O {[%emt 0:00:20]} 10. Be2 {[%emt 0:00:04]} Bg4 {[%emt 0:00:43]} 11. O-O {[%emt 0:00:26]} Re8 {[%emt 0:00:20]} 12. h3 {[%emt 0:00:47]} Bxf3 {[%emt 0:00:18]} 13. Bxf3 {[%emt 0:00:07]} Nbd7 {[%emt 0:00:25]} 14. Re1 {[%emt 0:02:44]} Qc7 {[%emt 0:00:51]} 15. Be3 {[%emt 0:14:32] A68: Modern Benoni: Four Pawns Attack without 9...Re8.} c4 {[%emt 0:02:12]} 16. Kh1 {[%emt 0:03:11]} Nc5 {[%emt 0:00:33]} 17. Bxc5 {[%emt 0:00:36] The position is equal.} Qxc5 {[%emt 0:00:14]} 18. e5 {[%emt 0:00:07]} dxe5 {[%emt 0:00:40]} 19. fxe5 {[%emt 0:00:03]} Nd7 {[%emt 0:00:16]} 20. e6 {[%emt 0:00:47]} Ne5 {[%emt 0:00:19]} 21. exf7+ {[%emt 0:07:20]} Nxf7 {[%emt 0:00:28]} 22. Bg4 {[%emt 0:02:13]} ({White should try} 22. Ne4 $11 Qa5 23. Re2) 22... Ne5 {[%emt 0:00:37]} ({Better is} 22... Rxe1+ $15 23. Qxe1 Ne5) 23. Be6+ $11 {[%emt 0:00:48]} Kh8 {[%emt 0:00:13]} 24. Ne4 $36 {[%emt 0:03:16][%mdl 2048] [#] White is more active.} Qb6 $146 {[%emt 0:02:22]} ({Predecessor:} 24... Qb4 25. Re2 Nd3 26. Rb1 Nf4 27. Ng5 Nxe2 {0-1 (26) Recoulat,E (2343)-Enricci,J (2517) CAPA email 2000}) 25. Ng5 {[%emt 0:08:46][%cal Oe1e5] Hoping for Rxe5!} Rf8 {[%emt 0:02:37]} ({Much weaker is} 25... Qxb2 26. Rb1 Qc3 27. Rxb7 $14) 26. Rxe5 $2 {[%emt 0:11:04] Now White is beyond hope.} Bxe5 $19 {[%emt 0:00:09]} 27. Nf7+ {[%emt 0:00:05] [#]} Rxf7 $1 {[%emt 0:00:27][%mdl 512]} 28. Bxf7 {[%emt 0:00:02]} Rf8 {[%emt 0:00:29]} (28... Qxb2 $2 29. Rc1 $19) ({Inferior is} 28... Bxb2 29. d6 $15) 29. Qe2 $2 {[%emt 0:06:43]} (29. Be6 Qxb2 30. Rc1 (30. Rb1 $2 Qf2 $19)) 29... Qxb2 {[%emt 0:03:13] Weighted Error Value: White=0.69/Black=0.09 (flawless)} 0-1

[Event "21st IPCA World Championship 2022"]
[Site "Ashdod"]
[Date "2022.05.15"]
[Round "8.6"]
[White "Valenta, Vit Vaclav"]
[Black "Gerasimova, Svetlana"]
[Result "0-1"]
[ECO "B21"]
[WhiteElo "2014"]
[BlackElo "1906"]
[Annotator "TA"]
[PlyCount "60"]
[EventDate "2022.05.09"]
[EventType "swiss"]
[EventCountry "ISR"]
[SourceTitle "playchess.com"]
[Source "ChessBase"]
[SourceQuality "1"]
[TimeControl "5400+30"]

{[%evp 9,60,16,48,0,0,-3,0,-18,63,25,34,0,0,-17,16,-31,30,28,25,5,8,14,22,11,15,5,8,-6,20,16,51,51,49,44,39,25,51,51,55,59,60,41,48,51,153,153,140,115,117,78,129,-412,-412]} 1. f4 {[%emt 0:00:04]} c5 {[%emt 0:00:08]} 2. e4 {[%emt 0:00:19]} d5 {[%emt 0:00:23]} 3. exd5 {[%emt 0:00:13]} Qxd5 {[%emt 0:00:05]} 4. Nc3 {[%emt 0:00:16]} Qd8 {[%emt 0:00:11]} 5. Nf3 {[%emt 0:00:20]} a6 {[%emt 0:00:42]} 6. a4 {[%emt 0:00:26] B21: Sicilian: 2 f4 and Morra Gambit.} (6. d4 $14) 6... Nc6 $11 {[%emt 0:00:35]} 7. Bc4 {[%emt 0:00:47]} Nf6 {[%emt 0:09:28]} 8. O-O {[%emt 0:07:03] [#] The position is equal.} g6 $146 {[%emt 0:07:19]} (8... e6 $11) ({Predecessor:} 8... Bg4 9. d3 e6 10. h3 Bxf3 11. Qxf3 Qc7 12. Re1 Be7 13. Ne4 O-O 14. Nxf6+ Bxf6 {1-0 (53) Hallenbeck,A-Sells,P Parsippany 2006}) 9. d3 {[%emt 0:04:38]} (9. Ne5 $5 {[%cal Rc4f7]} e6 10. Nxc6 bxc6 11. d3 $16) 9... Bg7 {[%emt 0:00:43]} 10. h3 {[%emt 0:05:40]} (10. Ne5 {keeps more tension.} O-O 11. Nxc6 bxc6 12. Qf3) 10... O-O {[%emt 0:01:21]} 11. Be3 {[%emt 0:06:48]} Nd4 {[%emt 0:04:37]} 12. Qd2 {[%emt 0:08:20]} (12. a5 $11) 12... Rb8 {[%emt 0:19:47]} (12... Nxf3+ $15 13. Rxf3 b6) 13. a5 {[%emt 0:04:25]} Nd7 {[%emt 0:20:46]} 14. Na4 {[%emt 0:15:07]} b5 {[%emt 0:02:56]} 15. axb6 $1 {[%emt 0:00:16][%cal Of3e5]} Nxb6 {[%emt 0:00:22]} 16. Nxb6 {[%emt 0:01:31]} ({Reject} 16. Nxc5 Nxf3+ 17. Rxf3 Nxc4 18. dxc4 Qxd2 19. Bxd2 Rxb2 $17) 16... Qxb6 {[%emt 0:01:15]} 17. Bxd4 {[%emt 0:02:40]} cxd4 {[%emt 0:02:16]} 18. b3 {[%emt 0:02:40]} Qd6 {[%emt 0:02:22]} 19. Ng5 {[%emt 0:01:41]} h6 {[%emt 0:01:30]} 20. Ne4 {[%emt 0:01:22]} Qc6 {[%emt 0:00:26]} 21. Ra5 {[%emt 0:03:15]} Rb6 {[%emt 0:03:02]} 22. Rfa1 {[%emt 0:05:24][%cal Bf1a1,Ba1a6,Ba6g6][%mdl 32]} Bb7 {[%emt 0:01:05]} 23. Nc5 {[%emt 0:03:13]} h5 {[%emt 0:12:36]} 24. Nxb7 {[%emt 0:05:13]} (24. Qe2 {feels hotter.} Bh6 25. Nxb7 Qxb7 26. Qe5) 24... Qxb7 {[%emt 0:00:10]} 25. Rxa6 {[%emt 0:00:12]} Rxa6 {[%emt 0:00:47]} 26. Rxa6 {[%emt 0:00:01]} Bh6 {[%emt 0:01:12]} (26... e6 $14) 27. Rxg6+ $1 $16 {[%emt 0:04:08]} Kh7 {[%emt 0:00:04]} 28. Ra6 {[%emt 0:02:16] [#] Strongly threatening Ra5.} Qc7 {[%emt 0:01:06]} 29. Ra5 {[%emt 0:01:17]} f5 {[%emt 0:01:29]} ({Better is} 29... Bxf4 30. Qe1 (30. Rxh5+ Kg6 $16) 30... Be3+ 31. Kh1 Kg6) 30. Qe2 $2 {[%emt 0:01:45][%mdl 8192]} Qxa5 {[%emt 0:00:13] Weighted Error Value: White=0.45/Black=0.25 (precise)} 0-1